[Event "Amsterdam Chess Open 2024"]
[Site "Amsterdam"]
[Date "2024.11.02"]
[Round "3.14"]
[White "Van der Meiden, Dirk"]
[Black "Aziz, Daniel"]
[Result "1-0"]
[ECO "C11"]
[WhiteElo "1968"]
[BlackElo "1882"]
[Annotator "RC"]
[PlyCount "123"]
[EventDate "2024.10.31"]
[EventType "swiss"]
[EventCountry "NED"]
[SourceTitle "playchess.com"]
[Source "ChessBase"]
[SourceQuality "1"]
[TimeControl "5400+30"]

1. e4 {[%emt 0:00:29]} e6 {[%emt 0:00:12]} 2. d4 {[%emt 0:00:09]} d5 {[%emt 0:00:06]} 3. Nc3 {[%emt 0:00:42]} Nf6 {[%emt 0:00:18]} 4. e5 {[%emt 0:00:23]} Nfd7 {[%emt 0:00:07]} 5. f4 {[%emt 0:00:08]} c5 {[%emt 0:00:05]} 6. Nf3 {[%emt 0:00:05]} Nc6 {[%emt 0:00:20]} 7. Be3 {[%emt 0:00:23]} cxd4 {[%emt 0:00:48]} 8. Nxd4 {[%emt 0:00:07]} Bc5 {[%emt 0:00:08]} 9. Qd2 {[%emt 0:01:20]} a6 {[%emt 0:00:49]} 10. O-O-O {[%emt 0:00:48]} O-O {[%emt 0:00:30]} 11. Kb1 {[%emt 0:00:37]} Nxd4 {[%emt 0:02:29]} 12. Bxd4 {[%emt 0:00:08]} b5 {[%emt 0:00:10]} 13. h4 {[%emt 0:04:06]} b4 {[%emt 0:04:21]} 14. Ne2 {[%emt 0:05:26]} a5 {[%emt 0:01:03]} 15. Rh3 {[%emt 0:00:49]} Ba6 {[%emt 0:01:28]} 16. f5 {[%emt 0:06:04]} Qc7 {[%emt 0:19:41]} 17. c3 {[%emt 0:18:52]} Rfc8 {[%emt 0:20:45]} 18. fxe6 {[%emt 0:11:18]} fxe6 {[%emt 0:01:12]} 19. Nf4 {[%emt 0:01:31]} Bxd4 {[%emt 0:06:03]} 20. cxd4 {[%emt 0:03:04]} Bxf1 {[%emt 0:04:02]} 21. Rxf1 {[%emt 0:01:14]} Ra6 {[%emt 0:00:36]} 22. Rhh1 {[%emt 0:04:21]} Rc6 {[%emt 0:02:30]} 23. Rc1 {[%emt 0:00:48]} Rxc1+ {[%emt 0:02:11]} 24. Rxc1 {[%emt 0:00:06]} Qxc1+ {[%emt 0:00:05]} 25. Qxc1 {[%emt 0:00:05]} Rxc1+ {[%emt 0:00:04]} 26. Kxc1 {[%emt 0:00:04]} Kf7 {[%emt 0:00:16]} 27. Kc2 {[%emt 0:01:26]} Nb6 {[%emt 0:01:24]} 28. g4 {[%emt 0:19:12]} g6 {[%emt 0:06:51]} 29. Nh3 {[%emt 0:02:00]} h6 {[%emt 0:05:35]} 30. g5 {[%emt 0:01:13]} hxg5 {[%emt 0:02:42]} 31. hxg5 {[%emt 0:05:09]} Nd7 {[%emt 0:00:06]} 32. Kb3 {[%emt 0:01:35]} Nb8 {[%emt 0:00:06]} 33. Ng1 {[%emt 0:01:35]} Nc6 {[%emt 0:00:15]} 34. Nf3 {[%emt 0:01:57]} Ke7 {[%emt 0:02:27]} 35. Ka4 {[%emt 0:00:39]} Kd7 {[%emt 0:01:33]} 36. Kb5 {[%emt 0:00:29]} Kc7 {[%emt 0:00:41]} 37. Ka6 {[%emt 0:03:33]} a4 {[%emt 0:00:57]} 38. b3 {[%emt 0:01:51]} axb3 {[%emt 0:01:59]} 39. axb3 {[%emt 0:00:03]} Ne7 {[%emt 0:01:06]} 40. Kb5 {[%emt 0:00:10]} Nf5 {[%emt 0:00:09]} 41. Kxb4 {[%emt 0:00:43]} Kb6 {[%emt 0:00:08]} 42. Ka4 {[%emt 0:01:59]} Ne3 {[%emt 0:08:44]} 43. Nh4 {[%emt 0:00:47]} Nc2 {[%emt 0:00:04]} 44. Nxg6 {[%emt 0:00:12]} Nxd4 {[%emt 0:00:04]} 45. Nf4 {[%emt 0:00:35]} Nc6 {[%emt 0:03:33]} 46. g6 {[%emt 0:00:54]} d4 {[%emt 0:00:33]} 47. g7 {[%emt 0:00:22]} Ne7 {[%emt 0:00:35]} 48. Kb4 {[%emt 0:00:26]} Nc6+ {[%emt 0:02:41]} 49. Ka4 {[%emt 0:02:54]} Ne7 {[%emt 0:00:03]} 50. Ng6 {[%emt 0:01:13]} d3 {[%emt 0:00:59]} 51. Nxe7 {[%emt 0:00:04]} d2 {[%emt 0:00:02]} 52. g8=Q {[%emt 0:00:07]} d1=Q {[%emt 0:00:06]} 53. Qxe6+ {[%emt 0:00:14]} Ka7 {[%emt 0:01:01]} 54. Nc6+ {[%emt 0:00:43]} Kb7 {[%emt 0:00:45]} 55. Qc4 {[%emt 0:00:57]} Qa1+ {[%emt 0:00:30]} 56. Kb4 {[%emt 0:00:14]} Qe1+ {[%emt 0:00:22]} 57. Qc3 {[%emt 0:00:21]} Qe4+ {[%emt 0:00:16]} 58. Ka3 {[%emt 0:00:25]} Qh1 {[%emt 0:01:13]} 59. Na5+ {[%emt 0:00:19]} Kb6 {[%emt 0:01:57]} 60. Qc6+ {[%emt 0:00:19]} Qxc6 {[%emt 0:00:00]} 61. Nxc6 {[%emt 0:00:06]} Kxc6 {[%emt 0:00:00]} 62. Kb4 {[%emt 0:00:16]} 1-0

[Event "Amsterdam Chess Open 2024"]
[Site "Amsterdam"]
[Date "2024.11.02"]
[Round "3.15"]
[White "Mikko, Rondo"]
[Black "Winnubst, Paul"]
[Result "1-0"]
[ECO "D35"]
[WhiteElo "1966"]
[BlackElo "1876"]
[Annotator "RC"]
[PlyCount "63"]
[EventDate "2024.10.31"]
[EventType "swiss"]
[EventCountry "NED"]
[SourceTitle "playchess.com"]
[Source "ChessBase"]
[SourceQuality "1"]
[TimeControl "5400+30"]

1. d4 {[%emt 0:00:12]} d5 {[%emt 0:00:07]} 2. Nf3 {[%emt 0:00:41]} Nf6 {[%emt 0:00:05]} 3. c4 {[%emt 0:00:05]} e6 {[%emt 0:00:04]} 4. e3 {[%emt 0:00:20]} Be7 {[%emt 0:00:35]} 5. Nc3 {[%emt 0:00:24]} O-O {[%emt 0:00:09]} 6. cxd5 {[%emt 0:03:52]} exd5 {[%emt 0:00:21]} 7. Bd3 {[%emt 0:00:17]} Bg4 {[%emt 0:02:04]} 8. Qb3 {[%emt 0:01:59]} Bxf3 {[%emt 0:02:38]} 9. gxf3 {[%emt 0:04:46]} b6 {[%emt 0:01:59]} 10. O-O {[%emt 0:10:55]} c5 {[%emt 0:02:37]} 11. dxc5 {[%emt 0:00:23]} Bxc5 {[%emt 0:01:30]} 12. Rd1 {[%emt 0:03:59]} Nc6 {[%emt 0:18:37]} 13. Qa4 {[%emt 0:09:36]} Rc8 {[%emt 0:06:14]} 14. Bf5 {[%emt 0:18:05]} Rc7 {[%emt 0:00:05]} 15. f4 {[%emt 0:06:45]} g6 {[%emt 0:15:36]} 16. Bh3 {[%emt 0:04:20]} h5 {[%emt 0:06:25]} 17. Bg2 {[%emt 0:02:06]} Ne7 {[%emt 0:00:38]} 18. Nb5 {[%emt 0:00:55]} Rd7 {[%emt 0:00:26]} 19. b4 {[%emt 0:00:50]} Bd6 {[%emt 0:02:15]} 20. Bh3 {[%emt 0:06:31]} Nf5 {[%emt 0:03:04]} 21. Bxf5 {[%emt 0:01:51]} gxf5 {[%emt 0:00:13]} 22. f3 {[%emt 0:00:45]} Qe7 {[%emt 0:02:50]} 23. Nd4 {[%emt 0:04:02]} Kh8 {[%emt 0:00:04]} 24. Kf2 {[%emt 0:03:15]} Ne4+ {[%emt 0:07:59]} 25. fxe4 {[%emt 0:00:21]} Qh4+ {[%emt 0:00:05]} 26. Kg1 {[%emt 0:01:05]} Rg8+ {[%emt 0:02:55]} 27. Kh1 {[%emt 0:00:06]} Qg4 {[%emt 0:06:16]} 28. Qc2 {[%emt 0:00:12]} Be5 {[%emt 0:01:25]} 29. Bb2 {[%emt 0:01:40]} Rc7 {[%emt 0:00:35]} 30. Qf2 {[%emt 0:00:34]} Kh7 {[%emt 0:02:23]} 31. Rg1 {[%emt 0:00:17]} Bxd4 {[%emt 0:01:26]} 32. Rxg4 {[%emt 0:00:57]} 1-0

[Event "Amsterdam Chess Open 2024"]
[Site "Amsterdam"]
[Date "2024.11.02"]
[Round "3.16"]
[White "Makhmud, Adi"]
[Black "Nies, Levi"]
[Result "0-1"]
[ECO "B33"]
[WhiteElo "1941"]
[BlackElo "1859"]
[Annotator "RC"]
[PlyCount "138"]
[EventDate "2024.10.31"]
[EventType "swiss"]
[EventCountry "NED"]
[SourceTitle "playchess.com"]
[Source "ChessBase"]
[SourceQuality "1"]
[TimeControl "5400+30"]

1. e4 {[%emt 0:22:37]} c5 {[%emt 0:00:25]} 2. Nf3 {[%emt 0:00:51]} Nc6 {[%emt 0:00:26]} 3. d4 {[%emt 0:00:15]} cxd4 {[%emt 0:00:04]} 4. Nxd4 {[%emt 0:00:04]} Nf6 {[%emt 0:00:04]} 5. Nc3 {[%emt 0:00:23]} e5 {[%emt 0:00:03]} 6. Ndb5 {[%emt 0:00:23]} d6 {[%emt 0:00:05]} 7. Bg5 {[%emt 0:01:48]} a6 {[%emt 0:00:03]} 8. Na3 {[%emt 0:00:11]} b5 {[%emt 0:00:03]} 9. Nab1 {[%emt 0:00:36]} Be7 {[%emt 0:05:24]} 10. Bxf6 {[%emt 0:03:19]} Bxf6 {[%emt 0:00:51]} 11. a4 {[%emt 0:00:30]} b4 {[%emt 0:02:56]} 12. Nd5 {[%emt 0:00:25]} a5 {[%emt 0:12:41]} 13. Bc4 {[%emt 0:03:32]} O-O {[%emt 0:03:27]} 14. O-O {[%emt 0:00:31]} Bg5 {[%emt 0:07:22]} 15. c3 {[%emt 0:10:05]} Rb8 {[%emt 0:03:47]} 16. Bb5 {[%emt 0:02:00]} Na7 {[%emt 0:13:32]} 17. Qd3 {[%emt 0:04:26]} Nxb5 {[%emt 0:02:18]} 18. axb5 {[%emt 0:00:11]} Be6 {[%emt 0:05:27]} 19. Rd1 {[%emt 0:05:59]} f5 {[%emt 0:07:13]} 20. cxb4 {[%emt 0:01:05]} axb4 {[%emt 0:07:52]} 21. Nxb4 {[%emt 0:01:51]} fxe4 {[%emt 0:00:30]} 22. Qxe4 {[%emt 0:06:13]} Qb6 {[%emt 0:05:37]} 23. Nd3 {[%emt 0:02:36]} Bf5 {[%emt 0:05:50]} 24. Qd5+ {[%emt 0:00:26]} Kh8 {[%emt 0:00:21]} 25. Nc3 {[%emt 0:01:45]} Bxd3 {[%emt 0:00:32]} 26. Qxd3 {[%emt 0:00:06]} Qxf2+ {[%emt 0:00:29]} 27. Kh1 {[%emt 0:00:04]} Qxb2 {[%emt 0:01:10]} 28. Rdb1 {[%emt 0:03:58]} Qf2 {[%emt 0:00:52]} 29. Ne4 {[%emt 0:00:09]} Qe3 {[%emt 0:02:18]} 30. Qxe3 {[%emt 0:00:13]} Bxe3 {[%emt 0:00:01]} 31. Nxd6 {[%emt 0:00:25]} Bc5 {[%emt 0:01:04]} 32. Ne4 {[%emt 0:03:27]} Bd4 {[%emt 0:00:05]} 33. Ra5 {[%emt 0:01:23]} Rb6 {[%emt 0:01:48]} 34. g3 {[%emt 0:00:41]} Rfb8 {[%emt 0:00:40]} 35. Ra3 {[%emt 0:01:53]} Kg8 {[%emt 0:00:52]} 36. Rab3 {[%emt 0:00:07]} Kf7 {[%emt 0:00:44]} 37. Nd2 {[%emt 0:04:22]} Rc8 {[%emt 0:02:00]} 38. Rb4 {[%emt 0:00:28]} Rc2 {[%emt 0:05:28]} 39. Nc4 {[%emt 0:00:17]} Rf6 {[%emt 0:00:11]} 40. b6 {[%emt 0:05:58]} Rff2 {[%emt 0:01:46]} 41. Nd6+ {[%emt 0:06:14]} Ke6 {[%emt 0:00:09]} 42. Rxd4 {[%emt 0:00:07]} exd4 {[%emt 0:00:36]} 43. Nb5 {[%emt 0:00:45]} Rxh2+ {[%emt 0:00:06]} 44. Kg1 {[%emt 0:00:05]} Rcg2+ {[%emt 0:00:08]} 45. Kf1 {[%emt 0:00:04]} Rh1+ {[%emt 0:00:06]} 46. Kxg2 {[%emt 0:00:03]} Rxb1 {[%emt 0:00:06]} 47. Nxd4+ {[%emt 0:00:27]} Kf7 {[%emt 0:00:23]} 48. Kf3 {[%emt 0:00:31]} Rxb6 {[%emt 0:00:04]} 49. g4 {[%emt 0:00:42]} Rb4 {[%emt 0:00:12]} 50. Nf5 {[%emt 0:00:26]} Ra4 {[%emt 0:00:22]} 51. Ng3 {[%emt 0:00:39]} g6 {[%emt 0:00:57]} 52. Ne4 {[%emt 0:00:53]} h6 {[%emt 0:00:10]} 53. Nc5 {[%emt 0:00:09]} Rc4 {[%emt 0:00:20]} 54. Nd3 {[%emt 0:00:33]} Kf6 {[%emt 0:00:08]} 55. Nf2 {[%emt 0:00:46]} Ke5 {[%emt 0:00:37]} 56. Nd3+ {[%emt 0:00:07]} Kf6 {[%emt 0:00:44]} 57. Nf2 {[%emt 0:00:08]} Kg5 {[%emt 0:00:07]} 58. Nh3+ {[%emt 0:00:24]} Kh4 {[%emt 0:00:04]} 59. Nf2 {[%emt 0:00:09]} g5 {[%emt 0:00:26]} 60. Kg2 {[%emt 0:01:17]} Rxg4+ {[%emt 0:00:16]} 61. Kh2 {[%emt 0:00:02]} Ra4 {[%emt 0:00:08]} 62. Nd3 {[%emt 0:00:16]} Ra2+ {[%emt 0:00:08]} 63. Kg1 {[%emt 0:00:05]} g4 {[%emt 0:00:10]} 64. Nb4 {[%emt 0:00:32]} Rd2 {[%emt 0:00:06]} 65. Kf1 {[%emt 0:00:08]} g3 {[%emt 0:00:04]} 66. Nc6 {[%emt 0:00:07]} Kh3 {[%emt 0:00:11]} 67. Ne5 {[%emt 0:00:26]} g2+ {[%emt 0:00:16]} 68. Ke1 {[%emt 0:00:05]} g1=Q+ {[%emt 0:00:16]} 69. Kxd2 {[%emt 0:00:03]} Qg5+ {[%emt 0:00:03]} 0-1

[Event "Amsterdam Chess Open 2024"]
[Site "Amsterdam"]
[Date "2024.11.02"]
[Round "3.17"]
[White "Leentjens, Gilbert"]
[Black "Mohnkern, Ansgar"]
[Result "1-0"]
[ECO "C29"]
[WhiteElo "1872"]
[BlackElo "1958"]
[Annotator "RC"]
[PlyCount "61"]
[EventDate "2024.10.31"]
[EventType "swiss"]
[EventCountry "NED"]
[SourceTitle "playchess.com"]
[Source "ChessBase"]
[SourceQuality "1"]
[TimeControl "5400+30"]

1. e4 {[%emt 0:03:51]} e5 {[%emt 0:01:11]} 2. Nc3 {[%emt 0:00:06]} Nf6 {[%emt 0:00:12]} 3. f4 {[%emt 0:00:06]} d5 {[%emt 0:00:08]} 4. fxe5 {[%emt 0:00:01]} Nxe4 {[%emt 0:00:23]} 5. Nf3 {[%emt 0:00:01]} Bc5 {[%emt 0:01:51]} 6. Qe2 {[%emt 0:00:12]} Bf5 {[%emt 0:00:58]} 7. d4 {[%emt 0:00:22]} Bb4 {[%emt 0:00:30]} 8. a3 {[%emt 0:01:49]} Bxc3+ {[%emt 0:11:48]} 9. bxc3 {[%emt 0:02:38]} Nxc3 {[%emt 0:11:06]} 10. Qe3 {[%emt 0:00:33]} Ne4 {[%emt 0:05:11]} 11. Bd3 {[%emt 0:00:02]} O-O {[%emt 0:07:01]} 12. O-O {[%emt 0:00:21]} c5 {[%emt 0:02:05]} 13. a4 {[%emt 0:09:59]} cxd4 {[%emt 0:03:22]} 14. Nxd4 {[%emt 0:01:43]} Bg6 {[%emt 0:00:06]} 15. Ba3 {[%emt 0:13:43]} Re8 {[%emt 0:01:05]} 16. e6 {[%emt 0:00:18]} fxe6 {[%emt 0:02:37]} 17. Bxe4 {[%emt 0:30:56]} Bxe4 {[%emt 0:01:44]} 18. Nxe6 {[%emt 0:05:21]} Rxe6 {[%emt 0:05:27]} 19. Rf8+ {[%emt 0:00:31]} Qxf8 {[%emt 0:00:01]} 20. Bxf8 {[%emt 0:00:02]} Kxf8 {[%emt 0:00:01]} 21. Qc5+ {[%emt 0:01:01]} Ke8 {[%emt 0:05:16]} 22. Qc8+ {[%emt 0:00:59]} Ke7 {[%emt 0:02:03]} 23. Qxb7+ {[%emt 0:03:13]} Nd7 {[%emt 0:00:15]} 24. Qxa8 {[%emt 0:00:18]} d4 {[%emt 0:00:06]} 25. Qxa7 {[%emt 0:00:09]} Bxc2 {[%emt 0:01:25]} 26. Qxd4 {[%emt 0:00:26]} Be4 {[%emt 0:00:33]} 27. Qxg7+ {[%emt 0:06:07]} Kd8 {[%emt 0:01:02]} 28. Rd1 {[%emt 0:00:36]} Re7 {[%emt 0:00:07]} 29. Qf8+ {[%emt 0:01:25]} Re8 {[%emt 0:00:08]} 30. Qd6 {[%emt 0:00:16]} Re7 {[%emt 0:00:26]} 31. Qb8# {[%emt 0:00:39]} 1-0

[Event "Amsterdam Chess Open 2024"]
[Site "Amsterdam"]
[Date "2024.11.02"]
[Round "3.18"]
[White "Verschoor, Scott"]
[Black "Garau, Francesca"]
[Result "1-0"]
[ECO "E22"]
[WhiteElo "1966"]
[BlackElo "1879"]
[Annotator "RC"]
[PlyCount "171"]
[EventDate "2024.10.31"]
[EventType "swiss"]
[EventCountry "NED"]
[SourceTitle "playchess.com"]
[Source "ChessBase"]
[SourceQuality "1"]
[TimeControl "5400+30"]

1. d4 {[%emt 0:00:03]} Nf6 {[%emt 0:00:35]} 2. c4 {[%emt 0:00:13]} e6 {[%emt 0:00:18]} 3. Nc3 {[%emt 0:00:12]} Bb4 {[%emt 0:00:29]} 4. Qc2 {[%emt 0:00:10]} Bxc3+ {[%emt 0:00:24]} 5. Qxc3 {[%emt 0:00:15]} Ne4 {[%emt 0:00:25]} 6. Qc2 {[%emt 0:00:32]} f5 {[%emt 0:00:31]} 7. Bf4 {[%emt 0:02:08]} g5 {[%emt 0:05:35]} 8. Be5 {[%emt 0:03:05]} Rg8 {[%emt 0:00:43]} 9. f3 {[%emt 0:02:06]} d6 {[%emt 0:04:55]} 10. Bg3 {[%emt 0:03:44]} Nf6 {[%emt 0:02:50]} 11. e3 {[%emt 0:00:59]} Qe7 {[%emt 0:09:21]} 12. Ne2 {[%emt 0:08:18]} Nc6 {[%emt 0:02:29]} 13. Bf2 {[%emt 0:05:18]} Bd7 {[%emt 0:03:48]} 14. O-O-O {[%emt 0:01:25]} O-O-O {[%emt 0:03:10]} 15. Nc3 {[%emt 0:07:57]} Nb4 {[%emt 0:23:54]} 16. Qb3 {[%emt 0:07:51]} c5 {[%emt 0:02:31]} 17. dxc5 {[%emt 0:00:34]} dxc5 {[%emt 0:00:22]} 18. a3 {[%emt 0:00:40]} Nc6 {[%emt 0:03:55]} 19. Be2 {[%emt 0:04:11]} Rg7 {[%emt 0:05:31]} 20. Bg3 {[%emt 0:11:34]} Be8 {[%emt 0:02:55]} 21. Rxd8+ {[%emt 0:08:46]} Qxd8 {[%emt 0:00:44]} 22. Qb5 {[%emt 0:02:52]} Qe7 {[%emt 0:04:42]} 23. Qb3 {[%emt 0:02:46]} Qf8 {[%emt 0:03:48]} 24. Rd1 {[%emt 0:01:23]} Rd7 {[%emt 0:00:35]} 25. Rxd7 {[%emt 0:00:26]} Bxd7 {[%emt 0:01:19]} 26. Qd1 {[%emt 0:00:30]} e5 {[%emt 0:03:00]} 27. Nd5 {[%emt 0:00:43]} h5 {[%emt 0:01:36]} 28. Nxf6 {[%emt 0:03:51]} Qxf6 {[%emt 0:00:13]} 29. Qd5 {[%emt 0:00:07]} Qe7 {[%emt 0:02:35]} 30. Bd1 {[%emt 0:04:11]} Be6 {[%emt 0:01:55]} 31. Qd3 {[%emt 0:00:07]} Qd7 {[%emt 0:01:29]} 32. Bc2 {[%emt 0:01:17]} h4 {[%emt 0:01:58]} 33. Bf2 {[%emt 0:00:12]} Qxd3 {[%emt 0:01:46]} 34. Bxd3 {[%emt 0:00:10]} b6 {[%emt 0:02:33]} 35. Bc2 {[%emt 0:03:15]} Kd7 {[%emt 0:00:39]} 36. f4 {[%emt 0:00:34]} exf4 {[%emt 0:01:20]} 37. exf4 {[%emt 0:00:19]} Nd4 {[%emt 0:01:16]} 38. Bd3 {[%emt 0:00:57]} h3 {[%emt 0:00:43]} 39. gxh3 {[%emt 0:00:27]} g4 {[%emt 0:00:32]} 40. hxg4 {[%emt 0:00:38]} fxg4 {[%emt 0:00:04]} 41. Bg3 {[%emt 0:00:49]} Ke7 {[%emt 0:00:28]} 42. Kd2 {[%emt 0:00:36]} Kf6 {[%emt 0:00:54]} 43. b4 {[%emt 0:01:45]} cxb4 {[%emt 0:01:03]} 44. axb4 {[%emt 0:00:06]} a5 {[%emt 0:00:25]} 45. bxa5 {[%emt 0:00:10]} bxa5 {[%emt 0:00:03]} 46. Kc3 {[%emt 0:00:23]} Nf5 {[%emt 0:01:27]} 47. Kb3 {[%emt 0:00:51]} Bd7 {[%emt 0:00:57]} 48. c5 {[%emt 0:01:39]} Bc6 {[%emt 0:00:31]} 49. Bf2 {[%emt 0:01:49]} Ke6 {[%emt 0:00:26]} 50. Bc4+ {[%emt 0:01:12]} Kf6 {[%emt 0:00:20]} 51. Be2 {[%emt 0:00:44]} Nh6 {[%emt 0:00:32]} 52. Bh4+ {[%emt 0:01:05]} Kf5 {[%emt 0:00:21]} 53. Bg5 {[%emt 0:01:48]} Nf7 {[%emt 0:00:53]} 54. Bd3+ {[%emt 0:00:09]} Ke6 {[%emt 0:00:06]} 55. Bc4+ {[%emt 0:02:46]} Bd5 {[%emt 0:00:01]} 56. Bxd5+ {[%emt 0:00:50]} Kxd5 {[%emt 0:00:03]} 57. Be7 {[%emt 0:00:13]} Nh6 {[%emt 0:01:03]} 58. Ka4 {[%emt 0:00:20]} Nf5 {[%emt 0:00:15]} 59. Bf8 {[%emt 0:00:42]} Nd4 {[%emt 0:00:23]} 60. Kxa5 {[%emt 0:01:27]} Kc6 {[%emt 0:00:06]} 61. Bd6 {[%emt 0:01:44]} Nf5 {[%emt 0:01:41]} 62. Kb4 {[%emt 0:00:16]} g3 {[%emt 0:00:24]} 63. hxg3 {[%emt 0:00:10]} Nxg3 {[%emt 0:00:02]} 64. Kc4 {[%emt 0:00:38]} Ne4 {[%emt 0:00:38]} 65. Bf8 {[%emt 0:00:46]} Nf6 {[%emt 0:01:12]} 66. Kd4 {[%emt 0:00:26]} Nd7 {[%emt 0:00:32]} 67. Be7 {[%emt 0:00:33]} Nb8 {[%emt 0:00:23]} 68. f5 {[%emt 0:01:06]} Kd7 {[%emt 0:00:18]} 69. f6 {[%emt 0:00:26]} Ke6 {[%emt 0:00:17]} 70. Kc4 {[%emt 0:00:22]} Nc6 {[%emt 0:01:05]} 71. Kb5 {[%emt 0:00:13]} Kd7 {[%emt 0:00:33]} 72. Kb6 {[%emt 0:00:12]} Nd4 {[%emt 0:00:56]} 73. Bd6 {[%emt 0:00:30]} Ke6 {[%emt 0:00:24]} 74. Be7 {[%emt 0:00:50]} Kd7 {[%emt 0:00:01]} 75. Kb7 {[%emt 0:00:39]} Nc6 {[%emt 0:01:15]} 76. Bd6 {[%emt 0:00:38]} Nd8+ {[%emt 0:00:13]} 77. Kb6 {[%emt 0:00:29]} Nf7 {[%emt 0:00:22]} 78. Bf8 {[%emt 0:02:23]} Ne5 {[%emt 0:00:40]} 79. Kb7 {[%emt 0:00:56]} Ke8 {[%emt 0:00:39]} 80. Bd6 {[%emt 0:00:17]} Nf7 {[%emt 0:00:35]} 81. Be7 {[%emt 0:00:17]} Ne5 {[%emt 0:00:32]} 82. c6 {[%emt 0:00:14]} Nc4 {[%emt 0:00:31]} 83. c7 {[%emt 0:00:08]} Na5+ {[%emt 0:00:07]} 84. Ka6 {[%emt 0:00:26]} Kd7 {[%emt 0:00:07]} 85. Kxa5 {[%emt 0:00:07]} Kxc7 {[%emt 0:00:04]} 86. f7 {[%emt 0:00:06]} 1-0

[Event "Amsterdam Chess Open 2024"]
[Site "Amsterdam"]
[Date "2024.11.02"]
[Round "3.19"]
[White "Teianu, Maxim"]
[Black "Aarts, Joaquin"]
[Result "1-0"]
[ECO "D35"]
[WhiteElo "1878"]
[BlackElo "1950"]
[Annotator "RC"]
[PlyCount "77"]
[EventDate "2024.10.31"]
[EventType "swiss"]
[EventCountry "NED"]
[SourceTitle "playchess.com"]
[Source "ChessBase"]
[SourceQuality "1"]
[TimeControl "5400+30"]

1. d4 {[%emt 0:00:02]} Nf6 {[%emt 0:00:10]} 2. c4 {[%emt 0:00:05]} e6 {[%emt 0:00:06]} 3. Nf3 {[%emt 0:00:04]} d5 {[%emt 0:00:07]} 4. Nc3 {[%emt 0:00:23]} Nbd7 {[%emt 0:00:07]} 5. Bf4 {[%emt 0:00:41]} Bb4 {[%emt 0:00:07]} 6. cxd5 {[%emt 0:00:26]} exd5 {[%emt 0:00:07]} 7. Qc2 {[%emt 0:00:19]} Ne4 {[%emt 0:00:52]} 8. a3 {[%emt 0:01:43]} Bxc3+ {[%emt 0:00:32]} 9. bxc3 {[%emt 0:00:05]} c5 {[%emt 0:01:41]} 10. Nd2 {[%emt 0:01:49]} Nxd2 {[%emt 0:16:25]} 11. Bxd2 {[%emt 0:02:42]} O-O {[%emt 0:02:57]} 12. e3 {[%emt 0:01:40]} c4 {[%emt 0:12:07]} 13. Be2 {[%emt 0:01:06]} Nf6 {[%emt 0:03:52]} 14. f3 {[%emt 0:00:36]} Re8 {[%emt 0:00:47]} 15. g4 {[%emt 0:09:02]} h5 {[%emt 0:08:06]} 16. gxh5 {[%emt 0:00:36]} Nxh5 {[%emt 0:01:11]} 17. O-O-O {[%emt 0:00:35]} Re6 {[%emt 0:18:54]} 18. e4 {[%emt 0:07:59]} Rb6 {[%emt 0:04:44]} 19. Be3 {[%emt 0:01:26]} Qe7 {[%emt 0:01:22]} 20. Kd2 {[%emt 0:00:27]} Bd7 {[%emt 0:08:00]} 21. Rhg1 {[%emt 0:03:45]} Re8 {[%emt 0:01:55]} 22. e5 {[%emt 0:00:34]} g6 {[%emt 0:01:13]} 23. Bg5 {[%emt 0:07:59]} Qf8 {[%emt 0:02:33]} 24. f4 {[%emt 0:13:17]} Ng7 {[%emt 0:01:22]} 25. h4 {[%emt 0:08:52]} Bf5 {[%emt 0:06:12]} 26. Qa2 {[%emt 0:00:47]} Ree6 {[%emt 0:01:33]} 27. h5 {[%emt 0:01:38]} Ne8 {[%emt 0:03:04]} 28. hxg6 {[%emt 0:00:39]} fxg6 {[%emt 0:00:32]} 29. Bf3 {[%emt 0:01:17]} Rb5 {[%emt 0:01:54]} 30. a4 {[%emt 0:02:49]} Ra6 {[%emt 0:00:37]} 31. Ra1 {[%emt 0:00:37]} Rba5 {[%emt 0:00:53]} 32. Rh1 {[%emt 0:01:29]} Qf7 {[%emt 0:00:48]} 33. Ke3 {[%emt 0:01:36]} Be6 {[%emt 0:00:44]} 34. Qh2 {[%emt 0:01:00]} Qg7 {[%emt 0:00:36]} 35. Qh4 {[%emt 0:01:22]} Kf7 {[%emt 0:00:42]} 36. Bd8 {[%emt 0:00:49]} g5 {[%emt 0:00:33]} 37. Qh5+ {[%emt 0:01:11]} Kf8 {[%emt 0:00:10]} 38. Bxa5 {[%emt 0:00:18]} gxf4+ {[%emt 0:00:21]} 39. Ke2 {[%emt 0:00:31]} 1-0